Workbook

Sheet паспорт
A1: ПАТ "УКРТРАНСГАЗ" | G1: ПАСПОРТ ФІЗИКО-ХІМІЧНИХ ПОКАЗНИКІВ ПРИРОДНОГО ГАЗУ № 808
A2: Філія "УМГ "Черкаситрансгаз" | G2: переданого Барським ЛВУМГ та прийнятого ПАТ "Вінницягаз" та ПАТ "Укртелеком"
A3: Барський п/м Барське ЛВУМГ | G3: Маршрут №808
A4: Вимірювальна хіміко-аналітична лабораторія
A5: Свідоцтво № ПУ-0124/15 чинно до 20.10.2018 р. | K5: по газопроводу "СОЮЗ" | V5: за період з | X5: 2017-04-01 | Z5: по | AA5: 2017-04-30
A7: Число місяця | B7: Компонентний склад, % мол. | N7: Фізико-хімічні показники газу обчислені на основі компонентного складу, 101,325 кПа | X7: Температура точки роси за вологою (Р = 3.92 МПа), ºС | Y7: Температура точки роси за вуглеводнями, ºС | Z7: Вміст сірководню, г/м3 | AA7: Вміст меркаптанової сірки, г/м3 | AB7: Вміст механічних домішок, г/м3
N8: Густина абсолютна, кг/м3,при 20 ºС, | O8: Температура вимірювання/згоряння при 20/25°С
B9: метан, С1 | C9: етан, С2 | D9: пропан, С3 | E9: ізо-бутан, і-С4 | F9: н-бутан, н-С4 | G9: нео-пентан, нео-С5 | H9: ізо-пентан, і-С5 | I9: н-пентан, н-С5 | J9: гексани та вищі, С6+ | K9: кисень, О2 | L9: азот, N2 | M9: діоксид вуглецю, CО2 | O9: Теплота згоряння нижча | R9: Теплота згоряння вища | U9: Число Воббе вище
O10: ккал/м3 | P10: МДж/м3 | Q10: кВт⋅год/м3 | R10: ккал/м3 | S10: МДж/м3 | T10: кВт⋅год/м3 | U10: ккал/м3 | V10: МДж/м3 | W10: кВт⋅год/м3
A11: 1 | O11: 8210 | P11: 34.37 | Q11: =P11/3.6 -> 9.547222222 | R11: 9103 | S11: 38.11 | T11: =S11/3.6 -> 10.58611111 | AC11: =SUM(B11:M11)+$K$42+$N$42 -> 0
A12: 2 | O12: 8210 | P12: 34.37 | Q12: 9.547222222 | R12: 9103 | S12: 38.11 | T12: 10.58611111 | AC12: 0
A13: 3 | O13: 8210 | P13: 34.37 | Q13: 9.547222222 | R13: 9103 | S13: 38.11 | T13: 10.58611111 | AC13: 0 | AD13: =IF(AC13=100,"ОК"," ") -> 
A14: 4 | O14: 8210 | P14: 34.37 | Q14: 9.547222222 | R14: 9103 | S14: 38.11 | T14: 10.58611111 | AC14: 0 | AD14: =IF(AC14=100,"ОК"," ") -> 
A15: 5 | B15: 95.6099 | C15: 2.4899 | D15: 0.7844 | E15: 0.1209 | F15: 0.1186 | G15: 0.0014 | H15: 0.0218 | I15: 0.0141 | J15: 0.0118 | K15: 0.0107 | L15: 0.6391 | M15: 0.1773 | N15: 0.7028 | O15: 8229 | P15: 34.45 | Q15: 9.569444444 | R15: 9124 | S15: 38.2 | T15: 10.61111111 | U15: 11944 | V15: 50.01 | W15: =V15/3.6 -> 13.89166667 | AC15: 99.9999
A16: 6 | O16: 8229 | P16: 34.45 | Q16: 9.569444444 | R16: 9124 | S16: 38.2 | T16: 10.61111111 | AC16: 0
A17: 7 | O17: 8229 | P17: 34.45 | Q17: 9.569444444 | R17: 9124 | S17: 38.2 | T17: 10.61111111 | AC17: 0
A18: 8 | O18: 8229 | P18: 34.45 | Q18: 9.569444444 | R18: 9124 | S18: 38.2 | T18: 10.61111111 | AC18: 0
A19: 9 | O19: 8229 | P19: 34.45 | Q19: 9.569444444 | R19: 9124 | S19: 38.2 | T19: 10.61111111 | AC19: 0
A20: 10 | O20: 8229 | P20: 34.45 | Q20: =P20/3.6 -> 9.569444444 | R20: 9124 | S20: 38.2 | T20: =S20/3.6 -> 10.61111111 | AC20: 0
A21: 11 | B21: 95.4474 | C21: 2.6038 | D21: 0.8182 | E21: 0.1247 | F21: 0.1228 | G21: 0.0014 | H21: 0.0219 | I21: 0.0141 | J21: 0.0114 | K21: 0.0094 | L21: 0.6311 | M21: 0.1938 | N21: 0.7041 | O21: 8241 | P21: 34.5 | Q21: 9.583333333 | R21: 9137 | S21: 38.25 | T21: 10.625 | U21: 11950 | V21: 50.03 | W21: =V21/3.6 -> 13.89722222 | AC21: 100 | AD21: ОК
A22: 12 | O22: 8241 | P22: 34.5 | Q22: 9.583333333 | R22: 9137 | S22: 38.25 | T22: 10.625 | AC22: 0
A23: 13 | O23: 8241 | P23: 34.5 | Q23: 9.583333333 | R23: 9137 | S23: 38.25 | T23: 10.625 | AC23: 0
A24: 14 | O24: 8241 | P24: 34.5 | Q24: 9.583333333 | R24: 9137 | S24: 38.25 | T24: 10.625 | AC24: 0
A25: 15 | O25: 8241 | P25: 34.5 | Q25: 9.583333333 | R25: 9137 | S25: 38.25 | T25: 10.625 | AC25: 0
A26: 16 | O26: 8241 | P26: 34.5 | Q26: =P26/3.6 -> 9.583333333 | R26: 9137 | S26: 38.25 | T26: =S26/3.6 -> 10.625 | AC26: 0
A27: 17 | O27: 8241 | P27: 34.5 | Q27: 9.583333333 | R27: 9137 | S27: 38.25 | T27: 10.625 | AC27: 0
A28: 18 | O28: 8241 | P28: 34.5 | Q28: 9.583333333 | R28: 9137 | S28: 38.25 | T28: 10.625 | AC28: 0
A29: 19 | B29: 96.0018 | C29: 2.2044 | D29: 0.6808 | E29: 0.1044 | F29: 0.1015 | G29: 0.0013 | H29: 0.0194 | I29: 0.0128 | J29: 0.0114 | K29: 0.0074 | L29: 0.693 | M29: 0.1618 | N29: 0.6993 | O29: 8188 | P29: 34.28 | Q29: 9.522222222 | R29: 9080 | S29: 38.02 | T29: 10.56111111 | U29: 11917 | V29: 49.89 | W29: =V29/3.6 -> 13.85833333 | X29: -21.2 | AC29: 100 | AD29: ОК
A30: 20 | O30: 8188 | P30: 34.28 | Q30: 9.522222222 | R30: 9080 | S30: 38.02 | T30: 10.56111111 | AC30: 0 | AD30: =IF(AC30=100,"ОК"," ") -> 
A31: 21 | O31: 8188 | P31: 34.28 | Q31: 9.522222222 | R31: 9080 | S31: 38.02 | T31: 10.56111111 | AC31: 0
A32: 22 | O32: 8188 | P32: 34.28 | Q32: 9.522222222 | R32: 9080 | S32: 38.02 | T32: 10.56111111 | AC32: 0
A33: 23 | O33: 8188 | P33: 34.28 | Q33: =P33/3.6 -> 9.522222222 | R33: 9080 | S33: 38.02 | T33: =S33/3.6 -> 10.56111111 | AC33: 0 | AD33: =IF(AC33=100,"ОК"," ") -> 
A34: 24 | O34: 8188 | P34: 34.28 | Q34: 9.522222222 | R34: 9080 | S34: 38.02 | T34: 10.56111111 | AC34: 0
A35: 25 | B35: 95.8484 | C35: 2.2997 | D35: 0.7097 | E35: 0.1113 | F35: 0.1078 | G35: 0.0013 | H35: 0.0207 | I35: 0.0137 | J35: 0.0121 | K35: 0.0075 | L35: 0.6941 | M35: 0.1737 | N35: 0.7006 | O35: 8200 | P35: 34.33 | Q35: 9.536111111 | R35: 9092 | S35: 38.07 | T35: 10.575 | U35: 11921 | V35: 49.91 | W35: =V35/3.6 -> 13.86388889 | Z35: 0 | AA35: 0 | AB35: 0 | AC35: 100 | AD35: ОК
A36: 26 | O36: 8200 | P36: 34.33 | Q36: 9.536111111 | R36: 9092 | S36: 38.07 | T36: =S36/3.6 -> 10.575 | AC36: 0
A37: 27 | O37: 8200 | P37: 34.33 | Q37: 9.536111111 | R37: 9092 | S37: 38.07 | T37: 10.575 | AC37: 0
A38: 28 | O38: 8200 | P38: 34.33 | Q38: 9.536111111 | R38: 9092 | S38: 38.07 | T38: 10.575 | AC38: 0
A39: 29 | O39: 8200 | P39: 34.33 | Q39: 9.536111111 | R39: 9092 | S39: 38.07 | T39: =S11/3.6 -> 10.58611111 | AC39: 0
A40: 30 | O40: 8200 | P40: 34.33 | Q40: 9.536111111 | R40: 9092 | S40: 38.07 | T40: =S40/3.6 -> 10.575 | AC40: 0
A41: 31 | AC41: 0
B42: Рівень одоризації відповідає чинним нормативним документам | O42: 8216 | P42: 34.39 | Q42: 9.55 | R42: 9109 | S42: 38.14 | T42: 10.59
H43: Середньозважене значення теплоти згоряння:
B46: Начальник управління Барського ЛВУМГ Мандра В.В.
C47: Підрозділу підприємства, якому підпорядкована лабораторія | O47: прізвище | R47: підпис
B48: Начальник лабораторії Ільницька Г.О.
C49: Лабораторія, де здійснювалось вимірювання газу | O49: прізвище | R49: підпис

Sheet variablesList (hidden)
A1: 3 | B1: x:\gaysin | C1: 10, 11, 24, 25, 127, 128, 132, 180, 207, 215 | D1: x:\
B2: x:\Illinci
B3: x:\Talne

Sheet додаток
A2: Додаток до паспорту фізико-хімічних показників природного газу по маршруту № 808
B4: Обсяг газу переданого за добу, м3 | E4: Середньозважене значення теплоти згоряння вищої по маршруту № 808
B5: Вінницька область
B6: ГРС Бар | C6: ГРС Жмеренка | D6: ГРС Дашківці (відвід на с.Ялтушків)
A7: Теплота згоряння вища (середньозважене значення за місяць), МДж/м³ | B7: ='[1]розрахунок №808'!C40 -> 38.14 | C7: ='[1]розрахунок №808'!D40 -> 38.14 | D7: ='[1]розрахунок №808'!E40 -> 38.14 | E7: ='[1]розрахунок №808'!F40 -> 38.14
A8: Теплота згоряння вища (середньозважене значення за місяць), ккал/м³ | B8: ='[1]розрахунок №808'!C41 -> 9109 | C8: ='[1]розрахунок №808'!D41 -> 9109 | D8: ='[1]розрахунок №808'!E41 -> 9109 | E8: ='[1]розрахунок №808'!F41 -> 9109
A9: Теплота згоряння вища (середньозважене значення за місяць), кВт*год./м³ | B9: ='[1]розрахунок №808'!C42 -> 10.59 | C9: ='[1]розрахунок №808'!D42 -> 10.59 | D9: ='[1]розрахунок №808'!E42 -> 10.59 | E9: ='[1]розрахунок №808'!F42 -> 10.59
A14: Начальник управління Барського ЛВУМГ Мандра В,В.
A15: Підрозділу підприємства, якому підпорядкована лабораторія | D15: прізвище
A16: Начальник лабораторії Ільницька Г.І.
A17: Лабораторія, де здійснювалось вимірювання газу | D17: прізвище
